[Event "Early-Titled-Tuesday-Blitz-September-05-2023"]
[Site "Chess.com"]
[Date "2023.09.05"]
[Round "6"]
[White "Markov_Mikhail"]
[Black "1stSecond"]
[Result "1-0"]
[WhiteElo "2713"]
[BlackElo "2907"]
[TimeControl "180+1"]
[EndTime "9:08:34 PDT"]
[Termination "Markov_Mikhail won by resignation"]

1. c4 {[%clk 0:02:59.8]} 1... Nf6 {[%clk 0:02:58.7]} 2. Nf3 {[%clk 0:03:00]}
2... e6 {[%clk 0:02:58.5]} 3. g3 {[%clk 0:02:57.9]} 3... a6 {[%clk 0:02:58.8]}
4. Bg2 {[%clk 0:02:58.1]} 4... b5 {[%clk 0:02:59.1]} 5. b3 {[%clk 0:02:51.2]}
5... c5 {[%clk 0:02:56.8]} 6. O-O {[%clk 0:02:51.1]} 6... Qb6 {[%clk 0:02:54.6]}
7. Nc3 {[%clk 0:02:49.7]} 7... Be7 {[%clk 0:02:48.4]} 8. a4 {[%clk 0:02:29.3]}
8... b4 {[%clk 0:02:42.8]} 9. a5 {[%clk 0:02:19.6]} 9... Qc7 {[%clk 0:02:43.2]}
10. Na4 {[%clk 0:02:20.1]} 10... Qxa5 {[%clk 0:02:38.7]} 11. d4 {[%clk
0:02:17.6]} 11... cxd4 {[%clk 0:02:28.2]} 12. Nxd4 {[%clk 0:02:15.3]} 12... d5
{[%clk 0:02:27.6]} 13. c5 {[%clk 0:02:10.3]} 13... e5 {[%clk 0:01:44.3]} 14. Nc2
{[%clk 0:01:58.7]} 14... Bb7 {[%clk 0:01:44.4]} 15. Nb6 {[%clk 0:01:29.2]} 15...
Qxc5 {[%clk 0:01:44.1]} 16. Nxa8 {[%clk 0:01:29]} 16... Bxa8 {[%clk 0:01:45]}
17. Bd2 {[%clk 0:01:29]} 17... Qb5 {[%clk 0:01:40.4]} 18. Bg5 {[%clk 0:01:16.6]}
18... O-O {[%clk 0:01:31.7]} 19. Ne3 {[%clk 0:01:15.6]} 19... Nbd7 {[%clk
0:01:27]} 20. Qd3 {[%clk 0:01:09.7]} 20... Qxd3 {[%clk 0:00:53.1]} 21. exd3
{[%clk 0:01:09.2]} 21... d4 {[%clk 0:00:53.7]} 22. Nc4 {[%clk 0:01:04.9]} 22...
Nc5 {[%clk 0:00:41.8]} 23. Nxe5 {[%clk 0:01:01.7]} 23... h6 {[%clk 0:00:31.1]}
24. Bf4 {[%clk 0:00:47.1]} 24... Bxg2 {[%clk 0:00:27.4]} 25. Kxg2 {[%clk
0:00:48]} 25... Nd5 {[%clk 0:00:27.5]} 26. Nc6 {[%clk 0:00:45.6]} 26... Nxf4+
{[%clk 0:00:24]} 27. gxf4 {[%clk 0:00:45.5]} 27... Bd6 {[%clk 0:00:18.9]} 28.
Nxb4 {[%clk 0:00:37.9]} 28... Nxb3 {[%clk 0:00:17.1]} 29. Ra4 {[%clk 0:00:38.4]}
29... a5 {[%clk 0:00:10.9]} 30. Nc6 {[%clk 0:00:35.2]} 30... Bxf4 {[%clk
0:00:11.3]} 31. Rb1 {[%clk 0:00:31.2]} 31... Nc5 {[%clk 0:00:10.5]} 32. Rxd4
{[%clk 0:00:30.4]} 32... Bd2 {[%clk 0:00:08.5]} 33. Rd5 {[%clk 0:00:29.4]} 33...
Ne6 {[%clk 0:00:08.8]} 34. Kf1 {[%clk 0:00:25.2]} 34... Ra8 {[%clk 0:00:04.6]}
35. Rb2 {[%clk 0:00:23.6]} 35... Bc3 {[%clk 0:00:04.4]} 36. Rb3 {[%clk 0:00:21]}
36... Bd2 {[%clk 0:00:04]} 37. Rdb5 {[%clk 0:00:19.9]} 37... a4 {[%clk
0:00:03.7]} 38. Rb8+ {[%clk 0:00:20.3]} 38... Rxb8 {[%clk 0:00:04.2]} 39. Rxb8+
{[%clk 0:00:21.2]} 39... Kh7 {[%clk 0:00:04.9]} 40. Ra8 {[%clk 0:00:22.1]} 40...
Nc5 {[%clk 0:00:05.2]} 41. d4 {[%clk 0:00:20.7]} 41... Ne4 {[%clk 0:00:02.9]}
42. Rxa4 {[%clk 0:00:20.4]} 42... Nf6 {[%clk 0:00:02.7]} 43. Ke2 {[%clk
0:00:19.7]} 43... Bf4 {[%clk 0:00:02.6]} 44. Kd3 {[%clk 0:00:19.9]} 44... Bxh2
{[%clk 0:00:02.4]} 45. Ra5 {[%clk 0:00:16.5]} 45... h5 {[%clk 0:00:02.2]} 46.
Ne5 {[%clk 0:00:16]} 46... Bxe5 {[%clk 0:00:02.1]} 47. Rxe5 {[%clk 0:00:15.1]}
47... Kh6 {[%clk 0:00:02.2]} 48. d5 {[%clk 0:00:14.4]} 48... h4 {[%clk
0:00:02.3]} 49. d6 {[%clk 0:00:14.9]} 49... g5 {[%clk 0:00:01.4]} 50. Re1 {[%clk
0:00:10.9]} 50... g4 {[%clk 0:00:01.6]} 51. Ke3 {[%clk 0:00:10.7]} 51... Kg5
{[%clk 0:00:02.1]} 52. Rd1 {[%clk 0:00:10.5]} 52... Nd7 {[%clk 0:00:02.2]} 53.
Rd5+ {[%clk 0:00:09.5]} 53... f5 {[%clk 0:00:02.9]} 54. Rd1 {[%clk 0:00:07.7]}
54... Kf6 {[%clk 0:00:03.6]} 55. Kf4 {[%clk 0:00:07.5]} 55... h3 {[%clk
0:00:02]} 56. Re1 {[%clk 0:00:06.7]} 56... Nc5 {[%clk 0:00:01.6]} 57. Kg3 {[%clk
0:00:06.2]} 57... Nd7 {[%clk 0:00:01.3]} 58. Re7 {[%clk 0:00:05]} 58... Nc5
{[%clk 0:00:01.8]} 59. Re8 {[%clk 0:00:05.4]} 59... Ne4+ {[%clk 0:00:02.4]} 60.
Kh2 {[%clk 0:00:05.3]} 60... Nxd6 {[%clk 0:00:02.6]} 61. Rf8+ {[%clk 0:00:05.8]}
61... Ke5 {[%clk 0:00:02.8]} 62. Ra8 {[%clk 0:00:06.7]} 62... Ne4 {[%clk
0:00:03]} 63. Ra2 {[%clk 0:00:06.4]} 63... Kf4 {[%clk 0:00:03.6]} 64. Kg1 {[%clk
0:00:06.5]} 64... Kf3 {[%clk 0:00:04.2]} 65. Ra3+ {[%clk 0:00:07.1]} 65... Ke2
{[%clk 0:00:04.6]} 66. Re3+ {[%clk 0:00:07.5]} 66... Kd2 {[%clk 0:00:04.7]} 67.
Ra3 {[%clk 0:00:08.4]} 67... Ng5 {[%clk 0:00:04.9]} 68. Ra2+ {[%clk 0:00:07.9]}
68... Ke1 {[%clk 0:00:04.7]} 69. Ra1+ {[%clk 0:00:07.5]} 69... Ke2 {[%clk
0:00:05.3]} 70. Ra2+ {[%clk 0:00:08.4]} 70... Kf3 {[%clk 0:00:05.7]} 71. Ra3+
{[%clk 0:00:08.8]} 71... Kf4 {[%clk 0:00:06.4]} 72. Ra4+ {[%clk 0:00:08.7]}
72... Ke5 {[%clk 0:00:06.8]} 73. Ra3 {[%clk 0:00:09.1]} 73... Nf3+ {[%clk
0:00:05.9]} 74. Kh1 {[%clk 0:00:08.3]} 74... Kf6 {[%clk 0:00:06.2]} 75. Ra2
{[%clk 0:00:08.6]} 75... Kg5 {[%clk 0:00:06.8]} 76. Ra5 {[%clk 0:00:08.3]} 76...
Nd2 {[%clk 0:00:06]} 77. Rd5 {[%clk 0:00:07.8]} 77... Ne4 {[%clk 0:00:06.2]} 78.
Kg1 {[%clk 0:00:08.2]} 78... Kf4 {[%clk 0:00:04.4]} 79. Rd4 {[%clk 0:00:06.8]}
79... Ke5 {[%clk 0:00:04.2]} 80. Rd3 {[%clk 0:00:06.7]} 80... f4 {[%clk
0:00:03.8]} 81. Ra3 {[%clk 0:00:07.1]} 81... f3 {[%clk 0:00:04.1]} 82. Ra8
{[%clk 0:00:06.1]} 82... Nc3 {[%clk 0:00:03.2]} 83. Rg8 {[%clk 0:00:05.6]} 83...
Ne2+ {[%clk 0:00:02.9]} 84. Kh2 {[%clk 0:00:05]} 84... Kf4 {[%clk 0:00:01.5]}
85. Rf8+ {[%clk 0:00:05.5]} 85... Kg5 {[%clk 0:00:02.1]} 86. Rg8+ {[%clk
0:00:06.4]} 86... Kf5 {[%clk 0:00:02.7]} 87. Rf8+ {[%clk 0:00:06.8]} 87... Ke4
{[%clk 0:00:03.2]} 88. Rf7 {[%clk 0:00:06.9]} 88... Nf4 {[%clk 0:00:02.1]} 89.
Kg3 {[%clk 0:00:07.4]} 89... Nh5+ {[%clk 0:00:02.2]} 90. Kxg4 {[%clk 0:00:07.8]}
90... h2 {[%clk 0:00:02.3]} 91. Re7+ {[%clk 0:00:08.3]} 91... Kd3 {[%clk
0:00:02.7]} 92. Re1 {[%clk 0:00:09.2]} 92... h1=Q {[%clk 0:00:01.5]} 93. Rxh1
{[%clk 0:00:09.7]} 93... Ke2 {[%clk 0:00:02.4]} 94. Rxh5 {[%clk 0:00:09.2]}
94... Kxf2 {[%clk 0:00:02.9]} 95. Rf5 {[%clk 0:00:10.1]} 95... Kg2 {[%clk
0:00:03.6]} 96. Rxf3 {[%clk 0:00:11]} 1-0

[Event "Early-Titled-Tuesday-Blitz-September-05-2023"]
[Site "Chess.com"]
[Date "2023.09.05"]
[Round "7"]
[White "FuenfgegenWilly"]
[Black "PetrolulSah"]
[Result "0-1"]
[WhiteElo "2303"]
[BlackElo "2161"]
[TimeControl "180+1"]
[EndTime "9:11:01 PDT"]
[Termination "PetrolulSah won by resignation"]

1. e4 {[%clk 0:03:00.9]} 1... e5 {[%clk 0:02:54.7]} 2. Nc3 {[%clk 0:03:00.2]}
2... Bc5 {[%clk 0:02:52.7]} 3. Qg4 {[%clk 0:02:58.2]} 3... g6 {[%clk 0:02:43.2]}
4. d4 {[%clk 0:02:45.1]} 4... d5 {[%clk 0:02:35.1]} 5. Qe2 {[%clk 0:02:39]} 5...
Bxd4 {[%clk 0:02:34.1]} 6. Nxd5 {[%clk 0:02:35.6]} 6... Be6 {[%clk 0:02:30.4]}
7. c3 {[%clk 0:02:32.6]} 7... Bb6 {[%clk 0:02:26.6]} 8. Nxb6 {[%clk 0:02:28.5]}
8... axb6 {[%clk 0:02:25.8]} 9. Qb5+ {[%clk 0:02:29]} 9... Nc6 {[%clk
0:02:24.4]} 10. Qxe5 {[%clk 0:02:29.9]} 10... Nxe5 {[%clk 0:02:24.1]} 0-1

[Event "Early-Titled-Tuesday-Blitz-September-05-2023"]
[Site "Chess.com"]
[Date "2023.09.05"]
[Round "7"]
[White "Vanina1989"]
[Black "Keeper0416"]
[Result "0-1"]
[WhiteElo "2711"]
[BlackElo "2614"]
[TimeControl "180+1"]
[EndTime "9:12:30 PDT"]
[Termination "Keeper0416 won by resignation"]

1. d4 {[%clk 0:03:00.9]} 1... Nf6 {[%clk 0:03:00.1]} 2. c4 {[%clk 0:03:00.5]}
2... g6 {[%clk 0:03:00.6]} 3. Nc3 {[%clk 0:03:00.1]} 3... d5 {[%clk 0:03:01.3]}
4. Nf3 {[%clk 0:02:59.8]} 4... Bg7 {[%clk 0:03:01.2]} 5. Bg5 {[%clk 0:02:59.6]}
5... Ne4 {[%clk 0:02:57.4]} 6. cxd5 {[%clk 0:02:59.7]} 6... Nxg5 {[%clk
0:02:57.9]} 7. Nxg5 {[%clk 0:03:00]} 7... e6 {[%clk 0:02:58.7]} 8. Nf3 {[%clk
0:03:00]} 8... exd5 {[%clk 0:02:58.9]} 9. e3 {[%clk 0:03:00.4]} 9... O-O {[%clk
0:02:58.7]} 10. b4 {[%clk 0:03:00]} 10... Be6 {[%clk 0:02:58.1]} 11. Be2 {[%clk
0:02:58.5]} 11... Nd7 {[%clk 0:02:58.7]} 12. O-O {[%clk 0:02:58]} 12... a5
{[%clk 0:02:59.2]} 13. a3 {[%clk 0:02:58.1]} 13... c6 {[%clk 0:02:53.7]} 14. Qc2
{[%clk 0:02:49.8]} 14... b5 {[%clk 0:02:49.8]} 15. Nd2 {[%clk 0:02:36.7]} 15...
Nb6 {[%clk 0:02:46.3]} 16. Nb3 {[%clk 0:02:36.7]} 16... axb4 {[%clk 0:02:39.6]}
17. axb4 {[%clk 0:02:36.2]} 17... Bf5 {[%clk 0:02:37.6]} 18. Bd3 {[%clk
0:02:32]} 18... Bxd3 {[%clk 0:02:37.2]} 19. Qxd3 {[%clk 0:02:30.7]} 19... Nc4
{[%clk 0:02:37.4]} 20. Nc5 {[%clk 0:02:30.5]} 20... Qc7 {[%clk 0:02:23.8]} 21.
g3 {[%clk 0:02:27.4]} 21... Ra7 {[%clk 0:02:19.1]} 22. Rxa7 {[%clk 0:02:05]}
22... Qxa7 {[%clk 0:02:20]} 23. e4 {[%clk 0:02:05.1]} 23... dxe4 {[%clk
0:02:14.2]} 24. Qxe4 {[%clk 0:01:59.5]} 24... Nd2 {[%clk 0:02:14]} 25. Qxc6
{[%clk 0:01:57.4]} 25... Nxf1 {[%clk 0:02:14]} 26. Kxf1 {[%clk 0:01:57.6]} 26...
Qa1+ {[%clk 0:02:12.7]} 0-1

[Event "Early-Titled-Tuesday-Blitz-September-05-2023"]
[Site "Chess.com"]
[Date "2023.09.05"]
[Round "7"]
[White "lamomiajunior"]
[Black "Andrej2004"]
[Result "1-0"]
[WhiteElo "2695"]
[BlackElo "2560"]
[TimeControl "180+1"]
[EndTime "9:13:23 PDT"]
[Termination "lamomiajunior won by resignation"]

1. d4 {[%clk 0:03:00.9]} 1... Nf6 {[%clk 0:02:58.9]} 2. Nc3 {[%clk 0:03:00.9]}
2... d5 {[%clk 0:02:57.4]} 3. Bf4 {[%clk 0:03:01.2]} 3... c6 {[%clk 0:02:56.5]}
4. e3 {[%clk 0:03:01.5]} 4... h6 {[%clk 0:02:56.2]} 5. Bd3 {[%clk 0:03:00]} 5...
g6 {[%clk 0:02:54.9]} 6. Nf3 {[%clk 0:02:59.1]} 6... Bg7 {[%clk 0:02:55.4]} 7.
Ne5 {[%clk 0:02:59.4]} 7... O-O {[%clk 0:02:51.9]} 8. h3 {[%clk 0:02:58.9]} 8...
Nbd7 {[%clk 0:02:50.7]} 9. Qe2 {[%clk 0:02:58.5]} 9... Nh5 {[%clk 0:02:50.3]}
10. Bh2 {[%clk 0:02:52.9]} 10... Qb6 {[%clk 0:02:33.2]} 11. O-O-O {[%clk
0:02:51.4]} 11... Bxe5 {[%clk 0:02:29]} 12. dxe5 {[%clk 0:02:50.1]} 12... Ng7
{[%clk 0:02:29.2]} 13. Bf4 {[%clk 0:02:33.1]} 13... Kh7 {[%clk 0:02:24.2]} 14.
h4 {[%clk 0:02:27.9]} 14... h5 {[%clk 0:02:09.6]} 15. g4 {[%clk 0:02:26.4]}
15... Nc5 {[%clk 0:02:09.5]} 16. gxh5 {[%clk 0:02:26.3]} 16... Nxd3+ {[%clk
0:02:09.8]} 17. Qxd3 {[%clk 0:02:22.4]} 17... Nxh5 {[%clk 0:02:08.6]} 18. Rhg1
{[%clk 0:02:21.8]} 18... Bf5 {[%clk 0:02:02.5]} 19. Qd2 {[%clk 0:02:21.6]} 19...
e6 {[%clk 0:02:00.5]} 20. Rg5 {[%clk 0:02:20.3]} 20... c5 {[%clk 0:01:51.4]} 21.
Qe2 {[%clk 0:02:18.1]} 21... Ng7 {[%clk 0:01:46.6]} 22. e4 {[%clk 0:02:15.7]}
22... d4 {[%clk 0:01:24.2]} 23. Na4 {[%clk 0:02:06.7]} 23... Qa5 {[%clk
0:01:20.5]} 24. exf5 {[%clk 0:02:07.1]} 24... Qxa4 {[%clk 0:01:20.6]} 25. f6
{[%clk 0:01:59.8]} 25... Qa3 {[%clk 0:01:11.6]} 26. bxa3 {[%clk 0:01:58.4]} 1-0

[Event "Early-Titled-Tuesday-Blitz-September-05-2023"]
[Site "Chess.com"]
[Date "2023.09.05"]
[Round "7"]
[White "shimastream"]
[Black "Rurep26"]
[Result "1-0"]
[WhiteElo "2965"]
[BlackElo "2825"]
[TimeControl "180+1"]
[EndTime "9:13:29 PDT"]
[Termination "shimastream won by resignation"]

1. d4 {[%clk 0:03:00.9]} 1... e6 {[%clk 0:02:59.9]} 2. Nf3 {[%clk 0:02:57.2]}
2... Nf6 {[%clk 0:02:59.7]} 3. Bg5 {[%clk 0:02:56.7]} 3... h6 {[%clk 0:02:57.3]}
4. Bh4 {[%clk 0:02:55.1]} 4... c5 {[%clk 0:02:57.1]} 5. e3 {[%clk 0:02:54.8]}
5... b6 {[%clk 0:02:57.3]} 6. Nbd2 {[%clk 0:02:53.1]} 6... cxd4 {[%clk
0:02:57.5]} 7. exd4 {[%clk 0:02:53.1]} 7... Bb7 {[%clk 0:02:58]} 8. c3 {[%clk
0:02:52.7]} 8... Be7 {[%clk 0:02:58.6]} 9. Bd3 {[%clk 0:02:50.6]} 9... O-O
{[%clk 0:02:59.2]} 10. Qe2 {[%clk 0:02:49.2]} 10... d6 {[%clk 0:02:58.9]} 11. g4
{[%clk 0:02:42.2]} 11... Nd5 {[%clk 0:02:46.7]} 12. Bg3 {[%clk 0:02:38.1]} 12...
Nd7 {[%clk 0:02:42.5]} 13. h4 {[%clk 0:02:33.9]} 13... Re8 {[%clk 0:02:41.5]}
14. g5 {[%clk 0:02:28.8]} 14... Bf8 {[%clk 0:02:30.4]} 15. gxh6 {[%clk
0:02:26.6]} 15... g6 {[%clk 0:02:22.8]} 16. h5 {[%clk 0:02:19.2]} 16... g5
{[%clk 0:02:22.5]} 17. O-O-O {[%clk 0:02:16.6]} 17... Bxh6 {[%clk 0:02:20.9]}
18. Bxd6 {[%clk 0:02:11.9]} 18... Rc8 {[%clk 0:02:09.3]} 19. Rhg1 {[%clk
0:01:56.6]} 19... N7f6 {[%clk 0:01:51.2]} 20. Nxg5 {[%clk 0:01:47.7]} 20... Bxg5
{[%clk 0:01:17.7]} 21. Rxg5+ {[%clk 0:01:48.6]} 21... Kh8 {[%clk 0:01:18.6]} 22.
Be5 {[%clk 0:01:47.1]} 1-0

[Event "Early-Titled-Tuesday-Blitz-September-05-2023"]
[Site "Chess.com"]
[Date "2023.09.05"]
[Round "7"]
[White "MarijaKuznecova"]
[Black "InadaC"]
[Result "1-0"]
[WhiteElo "2380"]
[BlackElo "1735"]
[TimeControl "180+1"]
[EndTime "9:13:53 PDT"]
[Termination "MarijaKuznecova won by resignation"]

1. e4 {[%clk 0:03:00.9]} 1... e6 {[%clk 0:02:50.8]} 2. d4 {[%clk 0:03:00.1]}
2... d5 {[%clk 0:02:51.4]} 3. Nc3 {[%clk 0:03:00.4]} 3... Bb4 {[%clk 0:02:49.7]}
4. e5 {[%clk 0:03:00.7]} 4... c5 {[%clk 0:02:48.6]} 5. a3 {[%clk 0:03:01.2]}
5... Bxc3+ {[%clk 0:02:47.6]} 6. bxc3 {[%clk 0:03:02.1]} 6... Qa5 {[%clk
0:02:47.8]} 7. Bd2 {[%clk 0:02:58.7]} 7... Nc6 {[%clk 0:02:46.9]} 8. Nf3 {[%clk
0:02:44.3]} 8... Bd7 {[%clk 0:02:45.8]} 9. c4 {[%clk 0:02:41.7]} 9... Qc7 {[%clk
0:02:43.5]} 10. cxd5 {[%clk 0:02:35.4]} 10... exd5 {[%clk 0:02:42.8]} 11. c3
{[%clk 0:02:36]} 11... cxd4 {[%clk 0:02:42.6]} 12. cxd4 {[%clk 0:02:36.9]} 12...
Nge7 {[%clk 0:02:41.9]} 13. Rc1 {[%clk 0:02:27.6]} 13... O-O {[%clk 0:02:40.5]}
14. Bd3 {[%clk 0:02:22.8]} 14... Bf5 {[%clk 0:02:38.4]} 15. Bxf5 {[%clk
0:02:08.8]} 15... Nxf5 {[%clk 0:02:37.7]} 16. O-O {[%clk 0:02:09.3]} 16... Qe7
{[%clk 0:02:35.1]} 17. Qa4 {[%clk 0:02:03.7]} 17... b5 {[%clk 0:02:22.1]} 18.
Qxb5 {[%clk 0:01:50.1]} 18... Ncxd4 {[%clk 0:02:21.2]} 19. Nxd4 {[%clk 0:01:51]}
19... Nxd4 {[%clk 0:02:20.7]} 20. Qd3 {[%clk 0:01:51.6]} 20... Qxe5 {[%clk
0:02:11.8]} 21. Rfe1 {[%clk 0:01:50.7]} 21... Qf6 {[%clk 0:01:41.9]} 22. Bc3
{[%clk 0:01:49.3]} 22... Rfe8 {[%clk 0:01:37.8]} 23. Rxe8+ {[%clk 0:01:41.2]}
23... Rxe8 {[%clk 0:01:36.7]} 24. Bxd4 {[%clk 0:01:39.6]} 24... Qe7 {[%clk
0:01:35.1]} 25. h3 {[%clk 0:01:36.2]} 25... h6 {[%clk 0:01:35.3]} 26. Qg3 {[%clk
0:01:33.4]} 26... f6 {[%clk 0:01:32]} 27. Rc7 {[%clk 0:01:30]} 27... Qf8 {[%clk
0:01:27.5]} 28. Bc5 {[%clk 0:01:28]} 28... Re1+ {[%clk 0:01:22.2]} 29. Kh2
{[%clk 0:01:27.8]} 1-0

[Event "Early-Titled-Tuesday-Blitz-September-05-2023"]
[Site "Chess.com"]
[Date "2023.09.05"]
[Round "7"]
[White "Casper"]
[Black "amylazy"]
[Result "1-0"]
[WhiteElo "2442"]
[BlackElo "2459"]
[TimeControl "180+1"]
[EndTime "9:14:33 PDT"]
[Termination "Casper won by checkmate"]

1. e4 {[%clk 0:03:00.9]} 1... c5 {[%clk 0:02:49.1]} 2. d4 {[%clk 0:03:00.4]}
2... cxd4 {[%clk 0:02:48.7]} 3. Qxd4 {[%clk 0:03:01.3]} 3... e6 {[%clk 0:02:44]}
4. Nc3 {[%clk 0:03:01]} 4... Nc6 {[%clk 0:02:41.1]} 5. Qd3 {[%clk 0:02:58]} 5...
Nf6 {[%clk 0:02:40.2]} 6. Bg5 {[%clk 0:02:57.3]} 6... Be7 {[%clk 0:02:39.6]} 7.
O-O-O {[%clk 0:02:57.2]} 7... O-O {[%clk 0:02:39.5]} 8. Nf3 {[%clk 0:02:50.9]}
8... Qa5 {[%clk 0:02:23.7]} 9. Kb1 {[%clk 0:02:48.8]} 9... Nb4 {[%clk
0:02:17.1]} 10. Qb5 {[%clk 0:02:21.5]} 10... Qc7 {[%clk 0:01:51.5]} 11. Bxf6
{[%clk 0:02:18.4]} 11... Bxf6 {[%clk 0:01:50.9]} 12. Qxb4 {[%clk 0:02:17.7]}
12... a5 {[%clk 0:01:44.9]} 13. Qc4 {[%clk 0:02:07.9]} 13... Qb6 {[%clk
0:01:44.5]} 14. e5 {[%clk 0:02:06.2]} 14... Be7 {[%clk 0:01:42.9]} 15. Bd3
{[%clk 0:02:00.7]} 15... Qxf2 {[%clk 0:01:41.6]} 16. Ne4 {[%clk 0:01:54]} 16...
Qxg2 {[%clk 0:01:38.3]} 17. Nf6+ {[%clk 0:01:49.2]} 17... Bxf6 {[%clk
0:01:36.7]} 18. exf6 {[%clk 0:01:41.9]} 18... Qxf3 {[%clk 0:01:36.7]} 19. Qh4
{[%clk 0:01:36.1]} 19... g6 {[%clk 0:00:51.9]} 20. Rhf1 {[%clk 0:01:28]} 20...
Qh5 {[%clk 0:00:37.8]} 21. Qxh5 {[%clk 0:01:26.8]} 21... gxh5 {[%clk 0:00:38.7]}
22. Rg1+ {[%clk 0:01:26.3]} 22... Kh8 {[%clk 0:00:39.2]} 23. Rg7 {[%clk
0:01:27.2]} 23... b5 {[%clk 0:00:32.9]} 24. Rxh7+ {[%clk 0:01:24.4]} 24... Kg8
{[%clk 0:00:33.8]} 25. Rg1# {[%clk 0:01:24.1]} 1-0

[Event "Early-Titled-Tuesday-Blitz-September-05-2023"]
[Site "Chess.com"]
[Date "2023.09.05"]
[Round "7"]
[White "Witik"]
[Black "Flaccidmoves"]
[Result "1-0"]
[WhiteElo "2671"]
[BlackElo "2477"]
[TimeControl "180+1"]
[EndTime "9:14:33 PDT"]
[Termination "Witik won by resignation"]

1. d4 {[%clk 0:02:58.8]} 1... d6 {[%clk 0:02:58.8]} 2. e4 {[%clk 0:02:57.8]}
2... Nf6 {[%clk 0:02:59.4]} 3. Nc3 {[%clk 0:02:57.8]} 3... g6 {[%clk 0:03:00]}
4. g3 {[%clk 0:02:57.6]} 4... Bg7 {[%clk 0:03:00.2]} 5. Bg2 {[%clk 0:02:58.2]}
5... O-O {[%clk 0:03:00.7]} 6. Nge2 {[%clk 0:02:57.6]} 6... c6 {[%clk
0:03:01.3]} 7. h3 {[%clk 0:02:55.5]} 7... e5 {[%clk 0:02:50.9]} 8. Be3 {[%clk
0:02:54.9]} 8... b5 {[%clk 0:02:44.3]} 9. a3 {[%clk 0:02:54.7]} 9... a6 {[%clk
0:02:39.1]} 10. O-O {[%clk 0:02:51.1]} 10... Nbd7 {[%clk 0:02:35.3]} 11. g4
{[%clk 0:02:49.8]} 11... Nb6 {[%clk 0:02:33]} 12. dxe5 {[%clk 0:02:39.9]} 12...
dxe5 {[%clk 0:02:32.7]} 13. Qxd8 {[%clk 0:02:39.7]} 13... Rxd8 {[%clk
0:02:32.9]} 14. Bxb6 {[%clk 0:02:39.8]} 14... Re8 {[%clk 0:02:33.4]} 15. Rfd1
{[%clk 0:02:24.3]} 15... Nd7 {[%clk 0:02:33.6]} 16. Be3 {[%clk 0:02:18.3]} 16...
Bf8 {[%clk 0:02:34]} 17. Nc1 {[%clk 0:02:13.2]} 17... Nc5 {[%clk 0:02:33]} 18.
Nb3 {[%clk 0:02:08.4]} 18... Ne6 {[%clk 0:02:28.1]} 19. Na5 {[%clk 0:02:03.6]}
19... c5 {[%clk 0:02:20.4]} 20. Nd5 {[%clk 0:02:02.4]} 20... Kg7 {[%clk
0:02:16.4]} 21. c3 {[%clk 0:01:52.2]} 21... Rb8 {[%clk 0:02:06.8]} 22. b4 {[%clk
0:01:51.6]} 22... cxb4 {[%clk 0:01:45.7]} 23. axb4 {[%clk 0:01:51.3]} 23... Bd7
{[%clk 0:01:45.1]} 24. Nb6 {[%clk 0:01:35.6]} 24... Bc8 {[%clk 0:01:42]} 25. Nc6
{[%clk 0:01:33.9]} 25... Rb7 {[%clk 0:01:37.2]} 26. Rxa6 {[%clk 0:01:31.8]}
26... Rc7 {[%clk 0:01:36.8]} 27. Nxc8 {[%clk 0:01:31.8]} 27... Rexc8 {[%clk
0:01:36.7]} 28. Nxe5 {[%clk 0:01:31.3]} 28... Rxc3 {[%clk 0:01:36]} 29. Rd7
{[%clk 0:01:27.4]} 29... R8c7 {[%clk 0:01:34.7]} 30. Ra7 {[%clk 0:01:24.1]}
30... Bxb4 {[%clk 0:01:27.8]} 31. Rxf7+ {[%clk 0:01:19.3]} 31... Kg8 {[%clk
0:01:26.6]} 32. Rfxc7 {[%clk 0:01:05.8]} 32... Nxc7 {[%clk 0:01:21.9]} 33. Bf1
{[%clk 0:00:56.6]} 1-0

[Event "Early-Titled-Tuesday-Blitz-September-05-2023"]
[Site "Chess.com"]
[Date "2023.09.05"]
[Round "7"]
[White "DefiantChair"]
[Black "XDPS"]
[Result "0-1"]
[WhiteElo "2643"]
[BlackElo "2866"]
[TimeControl "180+1"]
[EndTime "9:14:34 PDT"]
[Termination "XDPS won by resignation"]

1. e4 {[%clk 0:03:00.9]} 1... c5 {[%clk 0:02:59.1]} 2. Nf3 {[%clk 0:02:58.1]}
2... d6 {[%clk 0:02:59.4]} 3. d4 {[%clk 0:02:57.9]} 3... cxd4 {[%clk 0:03:00.3]}
4. Nxd4 {[%clk 0:02:58]} 4... Nf6 {[%clk 0:03:01]} 5. Nc3 {[%clk 0:02:57.8]}
5... a6 {[%clk 0:03:01.7]} 6. Bg5 {[%clk 0:02:58.2]} 6... Nbd7 {[%clk
0:03:01.8]} 7. Bc4 {[%clk 0:02:57.7]} 7... Qa5 {[%clk 0:03:01.1]} 8. Qd2 {[%clk
0:02:56.9]} 8... e6 {[%clk 0:03:01.6]} 9. O-O-O {[%clk 0:02:55.9]} 9... b5
{[%clk 0:03:02.3]} 10. Bb3 {[%clk 0:02:47.3]} 10... Bb7 {[%clk 0:03:02.9]} 11.
f3 {[%clk 0:02:47.1]} 11... Nc5 {[%clk 0:03:02.2]} 12. Kb1 {[%clk 0:02:41.8]}
12... Qc7 {[%clk 0:03:00.5]} 13. g4 {[%clk 0:02:34.8]} 13... O-O-O {[%clk
0:02:58.2]} 14. Be3 {[%clk 0:02:30.2]} 14... Kb8 {[%clk 0:02:56.7]} 15. a3
{[%clk 0:02:27.2]} 15... Be7 {[%clk 0:02:55.5]} 16. Qf2 {[%clk 0:02:26.3]} 16...
Rc8 {[%clk 0:02:53.4]} 17. h4 {[%clk 0:02:24.4]} 17... Nfd7 {[%clk 0:02:53.2]}
18. h5 {[%clk 0:02:15.6]} 18... Ka8 {[%clk 0:02:28.7]} 19. g5 {[%clk 0:02:14.9]}
19... g6 {[%clk 0:02:28.3]} 20. Nde2 {[%clk 0:01:51.2]} 20... Ne5 {[%clk
0:02:14.5]} 21. Bd4 {[%clk 0:01:45.2]} 21... Rhf8 {[%clk 0:02:05.2]} 22. f4
{[%clk 0:01:40.9]} 22... Nc6 {[%clk 0:02:00.6]} 23. e5 {[%clk 0:01:26.4]} 23...
Nxd4 {[%clk 0:01:58.9]} 24. Nxd4 {[%clk 0:01:24.3]} 24... Bxh1 {[%clk
0:01:56.8]} 25. Rxh1 {[%clk 0:01:23.5]} 25... dxe5 {[%clk 0:01:56.3]} 26. fxe5
{[%clk 0:01:24]} 26... Qxe5 {[%clk 0:01:46.3]} 27. hxg6 {[%clk 0:01:23.8]} 27...
hxg6 {[%clk 0:01:45.3]} 28. Nf3 {[%clk 0:01:22.2]} 28... Qf4 {[%clk 0:01:44]}
29. Ba2 {[%clk 0:01:21.1]} 29... Rfd8 {[%clk 0:01:39.4]} 30. Qg2 {[%clk
0:01:20.8]} 30... Kb8 {[%clk 0:01:39.5]} 31. Ne2 {[%clk 0:01:13.1]} 31... Qe3
{[%clk 0:01:39.3]} 32. Re1 {[%clk 0:01:11.3]} 32... Ne4 {[%clk 0:01:39.2]} 33.
Bb3 {[%clk 0:00:50.3]} 33... Qxf3 {[%clk 0:01:35.5]} 0-1